fUST/lending_fUST_20250202
["ID","MTS","AMOUNT","RATE_DAILY","PERIOD"]
[351239253,1738469253904,-379.16,0.000178,2]
[351239254,1738469253927,-25507.47,0.000178,14]
[351239255,1738469253951,-151.0,0.000178,2]
[351239256,1738469253973,-151.0,0.000178,2]
[351239257,1738469253997,-153.602706,0.000178,2]
[351239258,1738469254019,-465.0,0.000178,7]
[351239259,1738469254040,-393.344,0.00017807,2]
[351239260,1738469254066,-2009.43,0.00017808,2]
[351239261,1738469254089,-1023.35,0.00017808,2]
[351239262,1738469254112,-706.47,0.00017808,2]
[351239263,1738469254134,-510.32,0.00017808,2]
[351239264,1738469254156,-937.66,0.00017808,2]
[351239265,1738469254181,-572.21,0.00017808,2]
[351239266,1738469254204,-7188.35,0.00017808,2]
[351239267,1738469254227,-1015.89,0.00017808,2]
[351239268,1738469254249,-1377.97,0.00017808,2]
[351239269,1738469254271,-587.58,0.00017808,2]
[351239270,1738469254294,-908.69,0.00017808,2]
[351239271,1738469254316,-500.0,0.00017808,2]
[351239272,1738469254341,-500.0,0.00017808,2]
[351239273,1738469254365,-500.0,0.00017808,2]
[351239274,1738469254387,-151.0,0.00017808,2]
[351239275,1738469254409,-151.0,0.00017808,2]
[351239276,1738469254432,-4217.241,0.00017808,2]
[351239277,1738469254453,-167.0,0.00017874,2]
[351239278,1738469254475,-492.51185506,0.00017878,2]
[351239279,1738469254498,-500.2,0.00017888,2]
[351239280,1738469254521,-1285.5889443,0.000179,2]
[351239281,1738469254543,-10000.0,0.000179,2]
[351239282,1738469254564,-10000.0,0.000179,2]
[351239283,1738469254584,-10000.0,0.000179,2]
[351239284,1738469254605,-20496.76361,0.000179,2]
[351239285,1738469254629,-500.76417027,0.000179,2]
[351239286,1738469254650,-151.0,0.000179,2]
[351239287,1738469254672,-246.129078,0.000179,2]
[351239288,1738469254696,-151.0,0.000179,2]
[351239289,1738469254719,-295.258169,0.000179,2]
[351239290,1738469254742,-151.0,0.000179,2]
[351239291,1738469254763,-151.0,0.000179,2]
[351239292,1738469254784,-151.0,0.000179,2]
[351239293,1738469254807,-151.0,0.000179,2]
[351239294,1738469254828,-309.984763,0.000179,2]
[351239295,1738469254848,-309.984763,0.000179,2]
[351239296,1738469254869,-151.0,0.000179,2]
[351239297,1738469254890,-151.0,0.000179,2]
[351239298,1738469254912,-151.0,0.000179,2]
[351239299,1738469254935,-151.0,0.000179,2]
[351239300,1738469254958,-274.885012,0.000179,2]
[351239301,1738469254980,-240.850913,0.000179,2]
[351239302,1738469255002,-240.850913,0.000179,2]
[351239303,1738469255023,-195.144157,0.000179,2]
[351239304,1738469255045,-151.0,0.000179,2]
[351239305,1738469255066,-423.343134,0.000179,2]
[351239306,1738469255087,-423.343134,0.000179,2]
[351239307,1738469255108,-970.344825,0.000179,2]
[351239308,1738469255128,-970.344825,0.000179,2]
[351239309,1738469255149,-151.0,0.000179,2]
[351239310,1738469255172,-151.0,0.000179,2]
[351239311,1738469255194,-151.0,0.000179,2]
[351239312,1738469255215,-151.0,0.000179,2]
[351239313,1738469255236,-151.0,0.000179,2]
[351239314,1738469255257,-214.177055,0.000179,2]
[351239315,1738469255279,-162.287175,0.000179,2]
[351239316,1738469255299,-214.177055,0.000179,2]
[351239317,1738469255321,-151.0,0.000179,2]
[351239318,1738469255342,-151.0,0.000179,2]
[351239319,1738469255363,-212.25237,0.000179,2]
[351239320,1738469255383,-212.25237,0.000179,2]
[351239321,1738469255404,-161.7705,0.000179,2]
[351239322,1738469255426,-161.7705,0.000179,2]
[351239323,1738469255448,-215.053478,0.000179,2]
[351239324,1738469255468,-151.0,0.0001793,4]
[351239325,1738469255488,-19871.0,0.0001794,2]
[351239326,1738469255510,-500.0,0.00017945,2]
[351239327,1738469255530,-150.08,0.00017945,2]
[351239328,1738469255550,-150.08,0.00017945,2]
[351239329,1738469255571,-500.0,0.00017945,2]
[351239330,1738469255590,-500.0,0.00017945,2]
[351239331,1738469255611,-151.20663118,0.00017945,2]
[351239332,1738469255635,-203.47536817,0.00017945,2]
[351239333,1738469255655,-151.0,0.00017945,2]
[351239334,1738469255676,-151.0,0.00017945,2]
[351239335,1738469255698,-151.0,0.00017945,2]
[351239336,1738469255721,-153.602706,0.00017945,2]
[351239337,1738469255743,-151.0,0.00017945,2]
[351239338,1738469255764,-423.343134,0.00017945,2]
[351239339,1738469255784,-423.343134,0.00017945,2]
[351239340,1738469255805,-151.0,0.00017945,2]
[351239341,1738469255828,-2009.43,0.00017945,2]
[351239342,1738469255850,-1023.35,0.00017945,2]
[351239343,1738469255872,-706.47,0.00017945,2]
[351239344,1738469255893,-510.32,0.00017945,2]
[351239345,1738469255914,-937.66,0.00017945,2]
[351239346,1738469255938,-572.21,0.00017945,2]
[351239347,1738469255959,-7188.35,0.00017945,2]
[351239348,1738469255981,-1015.89,0.00017945,2]
[351239349,1738469256004,-1377.97,0.00017945,2]
[351239350,1738469256025,-587.58,0.00017945,2]
[351239351,1738469256047,-908.69,0.00017945,2]
[351239352,1738469256068,-500.0,0.00017945,2]
[351239353,1738469256090,-421.37991025,0.00017945,2]
[351239354,1738469256112,-208.95902054,0.00017945,2]
[351239355,1738469256134,-20000.0,0.00017961,2]
[351239356,1738469256156,-151.0,0.00017961,2]
[351239357,1738469256177,-309.984763,0.00017961,2]
[351239358,1738469256201,-309.984763,0.00017961,2]
[351239359,1738469256223,-151.0,0.00017961,2]
[351239360,1738469256246,-151.0,0.00017961,2]
[351239361,1738469256267,-151.0,0.00017961,2]
[351239362,1738469256288,-151.0,0.00017961,2]
[351239363,1738469256313,-240.850913,0.00017961,2]
[351239364,1738469256335,-240.850913,0.00017961,2]
[351239365,1738469256358,-970.344825,0.00017961,2]
[351239366,1738469256380,-970.344825,0.00017961,2]
[351239367,1738469256401,-151.0,0.00017961,2]
[351239368,1738469256422,-151.0,0.00017961,2]
[351239369,1738469256447,-151.0,0.00017961,2]
[351239370,1738469256467,-167.0,0.00017961,2]
[351239371,1738469256488,-214.177055,0.00017961,2]
[351239372,1738469256619,-214.177055,0.00017961,2]
[351239373,1738469256643,-151.0,0.00017961,2]
[351239374,1738469256667,-151.0,0.00017961,2]
[351239375,1738469256690,-212.25237,0.00017961,2]
[351239376,1738469256715,-212.25237,0.00017961,2]
[351239377,1738469256738,-161.7705,0.00017961,2]
[351239378,1738469256759,-161.7705,0.00017961,2]
[351239379,1738469256780,-420.0,0.00017963,2]
[351239380,1738469256803,-615.96854773,0.00017973,2]
[351239381,1738469256824,-350.70416163,0.00017973,2]
[351239382,1738469256849,-468.67383921,0.00017973,2]
[351239383,1738469256872,-500.26091815,0.00017973,2]
[351239384,1738469256893,-500.0,0.00017973,2]
[351239385,1738469256913,-500.36377879,0.00017973,2]
[351239386,1738469256937,-500.0,0.00017973,2]
[351239387,1738469256958,-731.90083053,0.00017985,2]
[351239390,1738469337802,500.0,0.00014964,2]
[351239392,1738469428240,237.0,0.00020453,120]
[351239416,1738469432128,175.590952,0.00013973,2]
[351239429,1738469432311,-300.0,0.00016329,2]
[351239431,1738469432321,-2525.80688657,0.0001633,2]
[351239432,1738469432369,-22374.19311343,0.0001633,2]
[351239433,1738469432379,-200.92290989,0.00016338,2]
[351239434,1738469432389,-500.0,0.00016438,2]
[351239435,1738469432399,-500.0,0.00016438,2]
[351239436,1738469432409,-500.0,0.00016438,2]
[351239437,1738469432418,-500.0,0.00016438,2]
[351239438,1738469432428,-500.0,0.00016438,2]
[351239439,1738469432437,-500.0,0.00016438,2]
[351239440,1738469432446,-1004.71,0.00016438,2]
[351239441,1738469432456,-500.0,0.00016438,2]
[351239442,1738469432465,-500.0,0.00016438,2]
[351239443,1738469432475,-500.0,0.00016438,2]
[351239444,1738469432484,-500.0,0.00016438,2]
[351239445,1738469432494,-501.18175277,0.00016438,2]
[351239446,1738469432503,-500.0,0.00016438,2]
[351239447,1738469432512,-500.0,0.00016438,2]
[351239448,1738469432521,-500.0,0.00016438,2]
[351239449,1738469432530,-500.0,0.00016438,2]
[351239451,1738469432540,-500.0,0.00016438,2]
[351239453,1738469432550,-500.0,0.00016438,2]
[351239455,1738469432559,-500.0,0.00016438,2]
[351239457,1738469432568,-500.0,0.00016438,2]
[351239459,1738469432577,-501.43856923,0.00016438,2]
[351239461,1738469432587,-500.0,0.00016438,2]
[351239462,1738469432600,-187.96206764,0.00016438,2]
[351239463,1738469432609,-500.0,0.00016438,2]
[351239464,1738469432618,-500.0,0.00016438,2]
[351239465,1738469432628,-500.0,0.00016438,2]
[351239466,1738469432637,-500.0,0.00016438,2]
[351239467,1738469432647,-503.01921612,0.00016438,2]
[351239468,1738469432656,-500.0,0.00016438,2]
[351239469,1738469432665,-500.0,0.00016438,2]
[351239470,1738469432675,-500.0,0.00016438,2]
[351239471,1738469432684,-500.0,0.00016438,2]
[351239472,1738469432697,-500.0,0.00016438,2]
[351239473,1738469432706,-500.0,0.00016438,2]
[351239474,1738469432715,-500.0,0.00016438,2]
[351239475,1738469432726,-503.02980575,0.00016438,2]
[351239476,1738469432735,-500.0,0.00016438,2]
[351239477,1738469432745,-500.0,0.00016438,2]
[351239478,1738469432754,-500.0,0.00016438,2]
[351239479,1738469432764,-500.0,0.00016438,2]
[351239480,1738469432773,-500.0,0.00016438,2]
[351239481,1738469432783,-500.0,0.00016438,2]
[351239482,1738469432792,-500.0,0.00016438,2]
[351239483,1738469432802,-503.88473912,0.00016438,2]
[351239484,1738469432812,-2130.91,0.00016438,2]
[351239485,1738469432821,-500.0,0.00016438,2]
[351239486,1738469432831,-3594.18,0.00016438,2]
[351239487,1738469432841,-500.0,0.00016438,2]
[351239488,1738469432851,-510.23508567,0.00016438,2]
[351239489,1738469432860,-500.0,0.00016438,2]
[351239490,1738469432870,-502.11111267,0.00016438,2]
[351239491,1738469432879,-500.0,0.00016438,2]
[351239492,1738469432888,-424.49814411,0.00016438,2]
[351239493,1738469432901,-75.50185589,0.00016438,2]
[351239494,1738469432911,-275.94714411,0.00016438,2]
[351239495,1738469432922,-224.05285589,0.00016438,2]
[351239496,1738469432932,-564.38,0.00016438,2]
[351239497,1738469432941,-500.0,0.00016438,2]
[351239498,1738469432950,-507.36625239,0.00016438,2]
[351239499,1738469432959,-504.40620073,0.00016438,2]
[351239500,1738469432968,-500.0,0.00016438,2]
[351239501,1738469432978,-500.0,0.00016438,2]
[351239502,1738469432987,-500.0,0.00016438,2]
[351239503,1738469432996,-500.0,0.00016438,2]
[351239504,1738469433006,-200.92290982,0.00016561,2]
[351239505,1738469433015,-1004.71,0.00016575,2]
[351239506,1738469433025,-500.0,0.00016575,2]
[351239507,1738469433035,-500.0,0.00016575,2]
[351239508,1738469433044,-2130.91,0.00016575,2]
[351239509,1738469433053,-500.0,0.00016575,2]
[351239510,1738469433064,-3594.18,0.00016575,2]
[351239511,1738469433074,-500.0,0.00016575,2]
[351239512,1738469433084,-564.38,0.00016575,2]
[351239513,1738469433098,-500.0,0.00016575,2]
[351239514,1738469433110,-1004.71,0.00016712,2]
[351239515,1738469433120,-500.0,0.00016712,2]
[351239516,1738469433130,-500.0,0.00016712,2]
[351239517,1738469433140,-2130.91,0.00016712,2]
[351239518,1738469433151,-500.0,0.00016712,2]
[351239519,1738469433161,-3594.18,0.00016712,2]
[351239520,1738469433171,-500.0,0.00016712,2]
[351239521,1738469433180,-564.38,0.00016712,2]
[351239522,1738469433190,-500.0,0.00016712,2]
[351239523,1738469433200,-200.92290982,0.00016784,2]
[351239524,1738469433210,-1004.71,0.00016849,2]
[351239525,1738469433219,-500.0,0.00016849,2]
[351239526,1738469433229,-394.53658606,0.00016849,2]
[351239527,1738469433259,-105.46341394,0.00016849,2]
[351239528,1738469433268,-1877.03658606,0.00016849,2]
[351239569,1738469439259,-500.0,0.00016438,2]
[351239570,1738469439269,-500.0,0.00016575,2]
[351239571,1738469439279,-500.0,0.00016712,2]
[351239572,1738469439288,-253.87341394,0.00016849,2]
[351239573,1738469439298,-500.0,0.00016849,2]
[351239574,1738469439308,-3594.18,0.00016849,2]
[351239575,1738469439318,-500.0,0.00016849,2]
[351239576,1738469439327,-564.38,0.00016849,2]
[351239577,1738469439337,-500.0,0.00016849,2]
[351239578,1738469439348,-500.0,0.00016849,2]
[351239579,1738469439358,-1004.71,0.00016986,2]
[351239580,1738469439367,-500.0,0.00016986,2]
[351239581,1738469439377,-500.0,0.00016986,2]
[351239582,1738469439387,-2130.91,0.00016986,2]
[351239583,1738469439397,-500.0,0.00016986,2]
[351239584,1738469439406,-3594.18,0.00016986,2]
[351239585,1738469439416,-500.0,0.00016986,2]
[351239586,1738469439426,-564.38,0.00016986,2]
[351239587,1738469439437,-500.0,0.00016986,2]
[351239588,1738469439447,-500.0,0.00016986,2]
[351239589,1738469439457,-200.92290982,0.00017007,2]
[351239590,1738469439466,-500.0,0.00017019,2]
[351239591,1738469439477,-1004.71,0.00017123,2]
[351239592,1738469439487,-500.0,0.00017123,2]
[351239593,1738469439497,-500.0,0.00017123,2]
[351239594,1738469439507,-2130.91,0.00017123,2]
[351239595,1738469439516,-500.0,0.00017123,2]
[351239596,1738469439526,-3594.18,0.00017123,2]
[351239598,1738469439535,-500.0,0.00017123,2]
[351239599,1738469439545,-564.38,0.00017123,2]
[351239600,1738469439555,-500.0,0.00017123,2]
[351239601,1738469439564,-500.0,0.00017123,2]
[351239602,1738469439574,-500.0,0.00017156,2]
[351239603,1738469439583,-200.92290982,0.00017231,2]
[351239604,1738469439594,-1004.71,0.0001726,2]
[351239605,1738469439604,-500.0,0.0001726,2]
[351239606,1738469439613,-500.0,0.0001726,2]
[351239607,1738469439623,-2130.91,0.0001726,2]
[351239608,1738469439633,-500.0,0.0001726,2]
[351239609,1738469439646,-3594.18,0.0001726,2]
[351239611,1738469439656,-500.0,0.0001726,2]
[351239612,1738469439665,-564.38,0.0001726,2]
[351239613,1738469439675,-500.0,0.0001726,2]
[351239614,1738469439685,-467.2795621,0.0001726,2]
[351239615,1738469439705,-32.7204379,0.0001726,2]
[351239616,1738469439715,-500.0,0.00017293,2]
[351239617,1738469439725,-1004.71,0.00017397,2]
[351239618,1738469439735,-500.0,0.00017397,2]
[351239620,1738469439744,-500.0,0.00017397,2]
[351239622,1738469439754,-2130.91,0.00017397,2]
[351239624,1738469439765,-500.0,0.00017397,2]
[351239625,1738469439775,-2226.14840769,0.00017397,2]
[351239626,1738469439788,-1368.03159231,0.00017397,2]
[351239627,1738469439798,-500.0,0.00017397,2]
[351239628,1738469439807,-564.38,0.00017397,2]
[351239629,1738469439817,-500.0,0.00017397,2]
[351239630,1738469439827,-355.30955769,0.0001743,2]
[351239631,1738469439839,-144.69044231,0.0001743,2]
[351239632,1738469439853,-200.92290982,0.00017454,2]
[351239633,1738469439863,-1004.71,0.00017534,2]
[351239635,1738469439872,-500.0,0.00017534,2]
[351239636,1738469439882,-151.0,0.00017534,2]
[351239637,1738469439892,-500.0,0.00017534,2]
[351239638,1738469439902,-151.0,0.00017534,2]
[351239639,1738469439912,-2130.91,0.00017534,2]
[351239640,1738469439922,-500.0,0.00017534,2]
[351239641,1738469439933,-3594.18,0.00017534,2]
[351239642,1738469439942,-500.0,0.00017534,2]
[351239643,1738469439952,-564.38,0.00017534,2]
[351239644,1738469439962,-500.0,0.00017534,2]
[351239645,1738469439972,-13255.3373504,0.00017563,2]
[351239646,1738469439982,-500.0,0.00017567,2]
[351239647,1738469439992,-396.0,0.00017645,2]
[351239648,1738469440001,-1004.71,0.00017671,2]
[351239649,1738469440011,-500.0,0.00017671,2]
[351239650,1738469440020,-500.0,0.00017671,2]
[351239651,1738469440030,-500.0,0.00017671,2]
[351239653,1738469440040,-2130.91,0.00017671,2]
[351239655,1738469440051,-3594.18,0.00017671,2]
[351239656,1738469440060,-500.0,0.00017671,2]
[351239657,1738469440069,-564.38,0.00017671,2]
[351239658,1738469440079,-500.0,0.00017671,2]
[351239659,1738469440089,-200.92290982,0.00017677,2]
[351239660,1738469440104,-151.0,0.000177,2]
[351239661,1738469440113,-151.0,0.000177,2]
[351239662,1738469440122,-500.0,0.00017704,2]
[351239663,1738469440132,-500.0,0.00017704,2]
[351239664,1738469440142,-1004.71,0.00017808,2]
[351239666,1738469440151,-500.0,0.00017808,2]
[351239667,1738469440161,-500.0,0.00017808,2]
[351239668,1738469440171,-500.0,0.00017808,2]
[351239670,1738469440180,-2130.91,0.00017808,2]
[351239672,1738469440189,-3594.18,0.00017808,2]
[351239673,1738469440199,-500.0,0.00017808,2]
[351239675,1738469440209,-564.38,0.00017808,2]
[351239677,1738469440218,-500.0,0.00017808,2]
[351239678,1738469440227,-466.37559275,0.00017833,2]
[351239679,1738469440237,-500.0,0.00017841,2]
[351239680,1738469440246,-420.0,0.00017847,2]
[351239681,1738469440255,-341.25,0.000179,2]
[351239682,1738469440264,-151.0,0.000179,2]
[351239683,1738469440274,-151.0,0.000179,2]
[351239684,1738469440284,-1004.71,0.00017945,2]
[351239685,1738469440294,-623.89886078,0.00017945,2]
[351239686,1738469440304,-500.0,0.00017945,2]
[351239687,1738469440314,-500.0,0.00017945,2]
[351239688,1738469440323,-2130.91,0.00017945,2]
[351239689,1738469440333,-3594.18,0.00017945,2]
[351239690,1738469440347,-500.0,0.00017945,2]
[351239691,1738469440357,-564.38,0.00017945,2]
[351239692,1738469440367,-500.0,0.00017945,2]
[351239693,1738469440378,-151.0,0.00017961,2]
[351239694,1738469440388,-151.0,0.00017961,2]
[351239695,1738469440398,-500.0,0.00017973,2]
[351239696,1738469440408,-500.0,0.00017978,2]
[351239697,1738469440419,-468.09916947,0.00017985,2]
[351239698,1738469440430,-342.98466058,0.00017999,2]
[351239699,1738469440440,-6652.01102884,0.00018,5]
[351239700,1738469440450,-190.43298953,0.00018,5]
[351239701,1738469440460,-148003.72439265,0.00018,15]
[351239702,1738469440473,-9754.41389664,0.00018,15]
[351239703,1738469440792,-35217.3561678,0.00018,15]
[351239704,1738469441890,-500.0,0.00017397,2]
[351239705,1738469441899,-500.0,0.00017534,2]
[351239706,1738469441909,-500.0,0.00017671,2]
[351239707,1738469441918,-500.0,0.00017808,2]
[351239708,1738469441927,-500.0,0.00017945,2]
[351239709,1738469441937,-11172.564377,0.00018,15]
[351239710,1738469441949,-35877.58712997,0.00018,15]
[351239739,1738469443212,-200.92290982,0.000179,2]
[351239741,1738469443221,-5473.1044744,0.00018,15]
[351239793,1738469444495,-80086.87450533,0.00018,15]
[351239794,1738469444507,-5713.36320525,0.00018,15]
[351239807,1738469448729,-40335.898601,0.00018,15]
[351239808,1738469448986,-2316.969917,0.00018,15]
[351239809,1738469449003,-36455.54099461,0.00018,15]
[351239810,1738469469443,500.0,0.00014964,2]
[351239812,1738469532500,763.56,0.00010959,2]
[351239814,1738470261276,174.767011,0.00013973,2]
[351239818,1738470333140,-300.0,0.00015412,2]
[351239819,1738470333167,-24900.0,0.00015413,2]
[351239820,1738470333191,-2896.8673409,0.00015484,2]
[351239821,1738470333215,-276.7356286,0.00015566,2]
[351239822,1738470333239,-166.0,0.00015609,2]
[351239823,1738470333261,-380.77554303,0.00016338,2]
[351239824,1738470333284,-380.77554303,0.00016407,2]
[351239825,1738470333305,-500.0,0.00016438,2]
[351239826,1738470333326,-255.15915599,0.00016438,2]
[351239827,1738470333348,-368.67574739,0.00016438,2]
[351239828,1738470333372,-500.0,0.00016438,2]
[351239829,1738470333395,-501.04664657,0.00016438,2]
[351239830,1738470333419,-466.36418391,0.00016438,2]
[351239831,1738470333442,-512.0999841,0.00016438,2]
[351239832,1738470333464,-533.62805799,0.00016438,2]
[351239833,1738470333486,-256.18645909,0.00016438,2]
[351239834,1738470333509,-500.0,0.00016438,2]
[351239835,1738470333532,-500.0,0.00016438,2]
[351239836,1738470333554,-500.0,0.00016438,2]
[351239837,1738470333578,-500.0,0.00016438,2]
[351239838,1738470333600,-500.0,0.00016438,2]
[351239839,1738470333624,-500.0,0.00016438,2]
[351239840,1738470333647,-500.0,0.00016438,2]
[351239841,1738470333672,-500.0,0.00016438,2]
[351239842,1738470333696,-500.0,0.00016438,2]
[351239843,1738470333720,-500.0,0.00016438,2]
[351239844,1738470333745,-500.0,0.00016438,2]
[351239845,1738470333770,-525.62394878,0.00016438,2]
[351239846,1738470333792,-505.54201152,0.00016438,2]
[351239847,1738470333816,-500.0,0.00016438,2]
[351239848,1738470333841,-536.07536648,0.00016438,2]
[351239849,1738470333865,-500.0,0.00016438,2]
[351239850,1738470333889,-506.53872522,0.00016438,2]
[351239851,1738470333916,-507.46963545,0.00016438,2]
[351239852,1738470333941,-500.0,0.00016438,2]
[351239853,1738470333963,-504.21661088,0.00016438,2]
[351239854,1738470333986,-504.04567418,0.00016438,2]
[351239855,1738470334013,-504.4130306,0.00016438,2]
[351239856,1738470334037,-503.62368092,0.00016438,2]
[351239857,1738470334060,-500.0,0.00016438,2]
[351239858,1738470334084,-500.0,0.00016438,2]
[351239859,1738470334107,-500.0,0.00016438,2]
[351239860,1738470334129,-506.97454325,0.00016438,2]
[351239861,1738470334151,-500.0,0.00016438,2]
[351239862,1738470334177,-500.0,0.00016438,2]
[351239863,1738470334200,-506.21642135,0.00016438,2]
[351239864,1738470334224,-500.0,0.00016438,2]
[351239865,1738470334247,-500.0,0.00016438,2]
[351239866,1738470334269,-500.0,0.00016438,2]
[351239867,1738470334292,-500.0,0.00016438,2]
[351239868,1738470334314,-501.42422133,0.00016438,2]
[351239869,1738470334336,-500.0,0.00016438,2]
[351239870,1738470334357,-504.69428113,0.00016438,2]
[351239871,1738470334379,-249.24565799,0.00016438,2]
[351239872,1738470334402,-288.30796054,0.00016438,2]
[351239873,1738470334426,-300.54503203,0.00016438,2]
[351239874,1738470334449,-500.0,0.00016438,2]
[351239875,1738470334471,-486.43529753,0.00016438,2]
[351239876,1738470334495,-500.0,0.00016438,2]
[351239877,1738470334518,-500.0,0.00016438,2]
[351239878,1738470334540,-500.0,0.00016438,2]
[351239879,1738470334563,-500.0,0.00016438,2]
[351239880,1738470334585,-500.0,0.00016438,2]
[351239881,1738470334607,-501.34688544,0.00016438,2]
[351239882,1738470334627,-500.0,0.00016438,2]
[351239883,1738470334649,-503.17670183,0.00016438,2]
[351239884,1738470334672,-500.0,0.00016438,2]
[351239885,1738470334695,-500.0,0.00016438,2]
[351239886,1738470334719,-501.89589802,0.00016438,2]
[351239887,1738470334742,-386.04922688,0.00016438,2]
[351239888,1738470334765,-500.0,0.00016438,2]
[351239889,1738470334787,-501.56441072,0.00016438,2]
[351239890,1738470334809,-500.0,0.00016438,2]
[351239891,1738470334831,-500.0,0.00016438,2]
[351239892,1738470334853,-500.0,0.00016438,2]
[351239893,1738470334990,-500.0,0.00016438,2]
[351239894,1738470335014,-504.73896653,0.00016438,2]
[351239895,1738470335036,-500.0,0.00016438,2]
[351239896,1738470335056,-345.35916834,0.00016438,2]
[351239897,1738470335077,-500.0,0.00016438,2]
[351239898,1738470335097,-500.0,0.00016438,2]
[351239899,1738470335119,-500.0,0.00016438,2]
[351239900,1738470335142,-500.0,0.00016438,2]
[351239901,1738470335167,-2040.34,0.00016438,2]
[351239902,1738470335188,-286.9708118,0.00016438,2]
[351239903,1738470335209,-500.0,0.00016438,2]
[351239904,1738470335231,-500.0,0.00016438,2]
[351239905,1738470335255,-502.23,0.00016438,2]
[351239906,1738470335277,-500.0,0.00016438,2]
[351239907,1738470335300,-500.0,0.00016438,2]
[351239908,1738470335321,-500.0,0.00016438,2]
[351239909,1738470335344,-500.0,0.00016438,2]
[351239910,1738470335367,-500.0,0.00016438,2]
[351239911,1738470335389,-500.0,0.00016438,2]
[351239912,1738470335415,-390.58363757,0.00016438,2]
[351239919,1738470384481,233.769922,0.00013699,2]
[351239920,1738470404924,500.0,0.00014964,2]
[351239924,1738470443092,-403.525601,0.00015527,2]
[351239925,1738470443115,-300.0,0.00016437,2]
[351239926,1738470443137,-500.0,0.00016438,2]
[351239927,1738470443160,-500.0,0.00016438,2]
[351239928,1738470443182,-502.40845415,0.00016438,2]
[351239929,1738470443206,-510.08604802,0.00016438,2]
[351239930,1738470443226,-510.40218062,0.00016438,2]
[351239931,1738470443248,-500.0,0.00016438,2]
[351239932,1738470443269,-500.0,0.00016438,2]
[351239933,1738470443292,-500.0,0.00016438,2]
[351239934,1738470443316,-500.0,0.00016438,2]
[351239935,1738470443336,-500.0,0.00016438,2]
[351239936,1738470443357,-509.00662334,0.00016438,2]
[351239937,1738470443378,-500.0,0.00016438,2]
[351239938,1738470443400,-168.82,0.00016438,2]
[351239939,1738470443422,-500.0,0.00016438,2]
[351239940,1738470443443,-500.0,0.00016438,2]
[351239941,1738470443464,-500.0,0.00016438,2]
[351239942,1738470443487,-500.0,0.00016438,2]
[351239943,1738470443508,-500.0,0.00016438,2]
[351239944,1738470443529,-500.0,0.00016438,2]
[351239945,1738470443551,-500.0,0.00016438,2]
[351239946,1738470443572,-500.0,0.00016438,2]
[351239947,1738470443595,-500.0,0.00016438,2]
[351239948,1738470443617,-500.0,0.00016438,2]
[351239949,1738470443641,-709.23,0.00016438,2]
[351239950,1738470443663,-500.0,0.00016438,2]
[351239951,1738470443685,-500.0,0.00016438,2]
[351239952,1738470443705,-500.0,0.00016438,2]
[351239953,1738470443727,-500.0,0.00016438,2]
[351239954,1738470443747,-500.0,0.00016438,2]
[351239955,1738470443769,-500.0,0.00016438,2]
[351239956,1738470443790,-500.0,0.00016438,2]